fUSD/lending_fUSD_20260630
["ID","MTS","AMOUNT","RATE_DAILY","PERIOD"]
[426758377,1782783043000,-509.53032134,0.00023655,2]
[426758381,1782783043000,-500.0,0.00023974,2]
[426758383,1782783043000,-1262.74696786,0.00024,2]
[426758382,1782783043000,-3600.0,0.00024,2]
[426758388,1782783043000,-206.0,0.00024,2]
[426758384,1782783043000,-11216.173876,0.00024,2]
[426758389,1782783043000,-480.0,0.00024,2]
[426758387,1782783043000,-171.0,0.00024,2]
[426758385,1782783043000,-171.0,0.00024,2]
[426758386,1782783043000,-914.0,0.00024,2]
[426758380,1782783043000,-563.48,0.00023898,2]
[426758362,1782783043000,-185.14235001,0.00023622,2]
[426758332,1782783043000,-150.0,0.00023288,2]
[426758363,1782783043000,-161.99419658,0.00023622,2]
[426758336,1782783043000,-150.0,0.00023288,2]
[426758337,1782783043000,-150.0,0.00023288,2]
[426758338,1782783043000,-150.0,0.00023288,2]
[426758341,1782783043000,-1707.67157113,0.00023316,2]
[426758344,1782783043000,-179.95329856,0.00023613,2]
[426758345,1782783043000,-177.85626479,0.00023613,2]
[426758342,1782783043000,-160.0,0.000234,7]
[426758340,1782783043000,-157.48811059,0.00023288,2]
[426758343,1782783043000,-797.94542526,0.00023559,2]
[426758346,1782783043000,-150.61759924,0.00023613,2]
[426758347,1782783043000,-182.68334485,0.00023613,2]
[426758348,1782783043000,-170.35589188,0.00023613,2]
[426758364,1782783043000,-191.90104982,0.00023622,2]
[426758353,1782783043000,-203.08260919,0.00023613,2]
[426758349,1782783043000,-174.40784466,0.00023613,2]
[426758361,1782783043000,-176.45424766,0.0002362,2]
[426758359,1782783043000,-170.97673441,0.0002362,2]
[426758360,1782783043000,-187.81331854,0.0002362,2]
[426758357,1782783043000,-155.80312789,0.00023613,2]
[426758358,1782783043000,-174.43068003,0.0002362,2]
[426758355,1782783043000,-158.90133289,0.00023613,2]
[426758352,1782783043000,-216.77510015,0.00023613,2]
[426758350,1782783043000,-218.45150209,0.00023613,2]
[426758356,1782783043000,-180.32901812,0.00023613,2]
[426758354,1782783043000,-189.18085994,0.00023613,2]
[426758351,1782783043000,-176.74478931,0.00023613,2]
[426758431,1782783044000,-348.86136007,0.00024877,2]
[426758434,1782783044000,-375.62663708,0.00024877,2]
[426758435,1782783044000,-352.90849531,0.00024877,2]
[426758433,1782783044000,-341.95346883,0.00024877,2]
[426758432,1782783044000,-365.36668969,0.00024877,2]
[426758423,1782783044000,-176.7845279,0.00024869,2]
[426758427,1782783044000,-317.80266579,0.00024869,2]
[426758425,1782783044000,-406.16521837,0.00024869,2]
[426758428,1782783044000,-360.65803624,0.00024869,2]
[426758437,1782783044000,-370.28470002,0.00024879,2]
[426758429,1782783044000,-311.60625578,0.00024869,2]
[426758438,1782783044000,-323.98839317,0.00024879,2]
[426758440,1782783044000,-323.46542466,0.00024879,2]
[426758439,1782783044000,-383.80209964,0.00024879,2]
[426758441,1782783044000,-167.54671676,0.00024879,2]
[426758443,1782783044000,-365.24668469,0.00024879,2]
[426758442,1782783044000,-313.38418414,0.00024879,2]
[426758430,1782783044000,-505.0,0.00024873,10]
[426758444,1782783044000,-245.60393004,0.00024879,2]
[426758445,1782783044000,-209.47141511,0.00024879,2]
[426758446,1782783044000,-159.72018684,0.00024879,2]
[426758447,1782783044000,-221.46026609,0.00024879,2]
[426758456,1782783044000,-360.79441816,0.00024888,2]
[426758449,1782783044000,-188.03,0.00024886,7]
[426758448,1782783044000,-375.87362457,0.00024879,2]
[426758451,1782783044000,-305.86635947,0.00024888,2]
[426758436,1782783044000,-235.86108831,0.00024877,2]
[426758426,1782783044000,-378.36171989,0.00024869,2]
[426758415,1782783044000,-178.12885866,0.00024869,2]
[426758422,1782783044000,-353.48957861,0.00024869,2]
[426758391,1782783044000,-190.0,0.00024,2]
[426758390,1782783044000,-568.0,0.00024,2]
[426758392,1782783044000,-239.0,0.00024,2]
[426758393,1782783044000,-653.0,0.00024,2]
[426758395,1782783044000,-2477.07520634,0.00024103,2]
[426758394,1782783044000,-505.0,0.00024051,10]
[426758396,1782783044000,-150.0,0.00024164,2]
[426758397,1782783044000,-320.0,0.00024414,2]
[426758398,1782783044000,-571.9,0.00024528,7]
[426758403,1782783044000,-179.25906787,0.00024694,2]
[426758404,1782783044000,-179.25906787,0.00024694,2]
[426758400,1782783044000,-188.03,0.00024658,2]
[426758402,1782783044000,-324.30939278,0.00024693,2]
[426758401,1782783044000,-183.11,0.00024658,2]
[426758399,1782783044000,-1000.0,0.00024658,2]
[426758407,1782783044000,-500.0,0.00024868,2]
[426758450,1782783044000,-183.11,0.00024886,7]
[426758406,1782783044000,-151.95595905,0.00024694,2]
[426758408,1782783044000,-500.0,0.00024868,2]
[426758411,1782783044000,-359.90659711,0.00024869,2]
[426758410,1782783044000,-215.1063841,0.00024869,2]
[426758412,1782783044000,-355.71252957,0.00024869,2]
[426758409,1782783044000,-500.0,0.00024868,2]
[426758413,1782783044000,-301.23519848,0.00024869,2]
[426758418,1782783044000,-152.53067988,0.00024869,2]
[426758416,1782783044000,-340.71178375,0.00024869,2]
[426758420,1782783044000,-348.81568932,0.00024869,2]
[426758421,1782783044000,-436.90300419,0.00024869,2]
[426758452,1782783044000,-215.04522789,0.00024888,2]
[426758405,1782783044000,-179.25906787,0.00024694,2]
[426758453,1782783044000,-323.5857385,0.00024888,2]
[426758488,1782783044000,-183.11,0.00025115,30]
[426758490,1782783044000,-188.03,0.00025343,2]
[426758483,1782783044000,-162.63,0.00025,7]
[426758485,1782783044000,-1707.67157113,0.00025008,2]
[426758489,1782783044000,-151.0,0.0002514,3]
[426758493,1782783044000,-233.0,0.0002552,2]
[426758494,1782783044000,-170.42,0.0002561,120]
[426758492,1782783044000,-150.0,0.00025373,2]
[426758504,1782783044000,-533.56879436,0.00025707,2]
[426758499,1782783044000,-539.85989567,0.00025707,2]
[426758500,1782783044000,-278.29241529,0.00025707,2]
[426758503,1782783044000,-203.72030867,0.00025707,2]
[426758497,1782783044000,-248.99164921,0.00025707,2]
[426758486,1782783044000,-320.0,0.00025099,2]
[426758502,1782783044000,-190.18372415,0.00025707,2]
[426758505,1782783044000,-217.3520439,0.00025707,2]
[426758496,1782783044000,-2477.07520634,0.000257,2]
[426758495,1782783044000,-505.0,0.00025696,11]
[426758498,1782783044000,-430.21276821,0.00025707,2]
[426758506,1782783044000,-219.43357672,0.00025707,2]
[426758507,1782783044000,-210.42658487,0.00025707,2]
[426758508,1782783044000,-242.37690128,0.00025707,2]
[426758509,1782783044000,-451.85279772,0.00025707,2]
[426758511,1782783044000,-284.76188758,0.00025707,2]
[426758512,1782783044000,-511.06767563,0.00025707,2]
[426758510,1782783044000,-356.25771732,0.00025707,2]
[426758513,1782783044000,-305.06135975,0.00025707,2]
[426758454,1782783044000,-404.53615395,0.00024888,2]
[426758501,1782783044000,-192.38320141,0.00025707,2]
[426758491,1782783044000,-183.11,0.00025343,2]
[426758424,1782783044000,-433.55020031,0.00024869,2]
[426758462,1782783044000,-49747.0,0.00024959,2]
[426758457,1782783044000,-370.03543526,0.00024888,2]
[426758459,1782783044000,-300.25473266,0.00024888,2]
[426758458,1782783044000,-153.23427527,0.00024888,2]
[426758461,1782783044000,-223.54524297,0.000249,4]
[426758460,1782783044000,-176.32353751,0.000249,2]
[426758465,1782783044000,-151.0,0.00024997,7]
[426758463,1782783044000,-25395.0,0.00024959,2]
[426758464,1782783044000,-154.46935751,0.00024967,2]
[426758467,1782783044000,-500.0,0.00024999,2]
[426758455,1782783044000,-394.44516884,0.00024888,2]
[426758469,1782783044000,-500.0,0.00024999,2]
[426758468,1782783044000,-500.0,0.00024999,2]
[426758472,1782783044000,-78308.56025333,0.00025,60]
[426758466,1782783044000,-500.0,0.00024999,2]
[426758471,1782783044000,-500.0,0.00024999,2]
[426758487,1782783044000,-188.03,0.00025115,30]
[426758482,1782783044000,-247.0,0.00025,2]
[426758481,1782783044000,-209.0,0.00025,2]
[426758477,1782783044000,-211.0,0.00025,2]
[426758480,1782783044000,-579.0,0.00025,2]
[426758478,1782783044000,-499.64602063,0.00025,2]
[426758479,1782783044000,-1142.0035089,0.00025,2]
[426758475,1782783044000,-921.10058497,0.00025,2]
[426758474,1782783044000,-173.0,0.00025,2]
[426758476,1782783044000,-172.0,0.00025,2]
[426758470,1782783044000,-500.0,0.00024999,2]
[426758473,1782783044000,-461069.27233071,0.00025,2]
[426758484,1782783044000,-662.83020111,0.00025,2]
[426758533,1782783045000,-269.63362701,0.00025715,2]
[426758535,1782783045000,-529.36274297,0.00025715,2]
[426758534,1782783045000,-259.98669383,0.00025715,2]
[426758536,1782783045000,-471.72217662,0.00025715,2]
[426758537,1782783045000,-166.57269421,0.00025716,2]
[426758531,1782783045000,-512.93020324,0.00025715,2]
[426758541,1782783045000,-485.19813699,0.00025716,2]
[426758539,1782783045000,-485.98258975,0.00025716,2]
[426758540,1782783045000,-575.70314946,0.00025716,2]
[426758542,1782783045000,-207.53980692,0.00025716,2]
[426758543,1782783045000,-335.09343351,0.00025716,2]
[426758544,1782783045000,-470.07627621,0.00025716,2]
[426758532,1782783045000,-563.43995562,0.00025715,2]
[426758538,1782783045000,-555.42705004,0.00025716,2]
[426758530,1782783045000,-431.93206847,0.00025715,2]
[426758516,1782783045000,-655.35450628,0.00025707,2]
[426758527,1782783045000,-548.05003454,0.00025715,2]
[426758515,1782783045000,-530.23436792,0.00025707,2]
[426758514,1782783045000,-523.22353398,0.00025707,2]
[426758545,1782783045000,-547.87002704,0.00025717,2]
[426758517,1782783045000,-353.5690558,0.00025707,2]
[426758518,1782783045000,-650.32530046,0.00025707,2]
[426758519,1782783045000,-229.24227464,0.00025707,2]
[426758528,1782783045000,-248.36443086,0.00025715,2]
[426758520,1782783045000,-609.24782756,0.00025707,2]
[426758522,1782783045000,-476.70399868,0.00025707,2]
[426758526,1782783045000,-523.2920401,0.00025715,2]
[426758523,1782783045000,-540.98705435,0.00025707,2]
[426758524,1782783045000,-467.40938366,0.00025707,2]
[426758525,1782783045000,-159.99787058,0.00025715,2]
[426758529,1782783045000,-203.4711664,0.00025715,2]
[426758521,1782783045000,-567.54257983,0.00025707,2]
[426758546,1782783045000,-491.20786009,0.00025717,2]
[426758555,1782783045000,-485.37860775,0.00025726,2]
[426758548,1782783045000,-418.94283022,0.00025717,2]
[426758581,1782783045000,-4839.34083007,0.000258,2]
[426758579,1782783045000,-522.9943377,0.00025799,2]
[426758578,1782783045000,-480.16233145,0.00025799,2]
[426758580,1782783045000,-349856.97539412,0.000258,2]
[426758576,1782783045000,-500.0,0.00025799,2]
[426758577,1782783045000,-500.0,0.00025799,2]
[426758574,1782783045000,-500.0,0.00025799,2]
[426758575,1782783045000,-500.0,0.00025799,2]
[426758572,1782783045000,-500.0,0.00025799,2]
[426758571,1782783045000,-362.12027751,0.00025799,2]
[426758570,1782783045000,-500.0,0.00025799,2]
[426758573,1782783045000,-500.0,0.00025799,2]
[426758566,1782783045000,-450.382099,0.00025726,2]
[426758568,1782783045000,-151.0,0.00025797,7]
[426758567,1782783045000,-347.51444905,0.0002579,2]
[426758569,1782783045000,-500.0,0.00025799,2]
[426758565,1782783045000,-242.61557316,0.00025726,2]
[426758549,1782783045000,-442.92053218,0.00025717,2]
[426758547,1782783045000,-319.44037368,0.00025717,2]
[426758550,1782783045000,-563.81043685,0.00025717,2]
[426758552,1782783045000,-458.79953921,0.00025726,2]
[426758564,1782783045000,-214.00308607,0.00025726,2]
[426758553,1782783045000,-237.04979323,0.00025726,2]
[426758557,1782783045000,-591.66775325,0.00025726,2]
[426758554,1782783045000,-430.09045578,0.00025726,2]
[426758558,1782783045000,-290.14612559,0.00025726,2]
[426758560,1782783045000,-541.19162723,0.00025726,2]
[426758559,1782783045000,-229.81167333,0.00025726,2]
[426758562,1782783045000,-555.05315288,0.00025726,2]
[426758561,1782783045000,-185.75171505,0.00025726,2]
[426758563,1782783045000,-306.46855053,0.00025726,2]
[426758556,1782783045000,-606.80423092,0.00025726,2]
[426758551,1782783045000,-308.0783785,0.00025726,2]
[426758586,1782783046000,-8551.52658401,0.000258,2]
[426758585,1782783046000,-10037.38538355,0.000258,2]
[426758584,1782783046000,-311.674504,0.000258,2]
[426758583,1782783046000,-319.925496,0.00024888,2]
[426758587,1782783047000,-500.0,0.000114,2]
[426758588,1782783047000,-500.0,0.000114,2]
[426758589,1782783047000,-228.16154552,0.000114,2]
[426758590,1782783047000,-319.925496,0.00025164,2]
[426758591,1782783047000,-3.20539629,0.000258,2]
[426758606,1782783192000,-345.795564,0.00011244,2]
[426758609,1782783245000,-174.54604382,0.00011201,2]
[426758613,1782783298000,-378.2963393,0.00011299,2]
[426758615,1782783351000,-500.0,0.00011299,2]
[426758618,1782783406000,156.49300909,0.00010399,2]
[426758617,1782783406000,228.32046218,0.00010399,2]
[426758616,1782783406000,-1222.77733505,0.00011199,2]
[426758619,1782783418000,-395.71993234,0.00010399,2]
[426758620,1782783419000,1092.98098154,0.00011244,7]
[426758621,1782783419000,1092.98098154,0.00011469,7]
[426758622,1782783419000,1092.98098154,0.00011806,7]
[426758624,1782783472000,-3203.15418871,0.00011199,2]
[426758625,1782783485000,-831.19798937,0.00011199,2]
[426758626,1782783538000,-174.54604382,0.00011198,2]
[426758627,1782783745000,165.99,8.66e-05,2]
[426758628,1782783775000,163.32489621,0.00011244,7]
[426758632,1782783911000,-1000.0,0.0001024,2]
[426758638,1782783965000,186.91549806,9.757e-05,2]
[426758637,1782783965000,-1000.0,0.0001024,2]
[426758639,1782783988000,-661.0,0.00010081,2]
[426758642,1782784018000,-466.51,0.00010025,2]
[426758643,1782784035000,728.689433,9.955e-05,2]
[426758644,1782784071000,-3203.15418871,0.00010006,2]
[426758645,1782784072000,-500.0,0.00010006,2]
[426758646,1782784072000,-500.0,0.00010006,2]
[426758647,1782784072000,-296.97581129,0.00010006,2]
[426758648,1782784072000,-203.02418871,0.00010038,2]
[426758650,1782784072000,201.87,0.00010108,7]
[426758651,1782784072000,-500.0,0.00010038,2]
[426758652,1782784072000,-500.0,0.00010038,2]
[426758649,1782784072000,-500.0,0.00010038,2]
[426758653,1782784073000,-500.0,0.00010038,2]
[426758654,1782784074000,-214.84544571,0.00010006,2]
[426758655,1782784075000,-285.15455429,0.00010038,2]
[426758656,1782784076000,-500.0,0.00010038,2]
[426758658,1782784078000,-202.27,0.00010081,2]
[426758657,1782784078000,-169.371257,0.00010038,2]
[426758659,1782784078000,-128.358743,0.00010108,2]
[426758662,1782784098000,-253.3915621,0.00010227,2]
[426758663,1782784098000,-211.26599071,0.0001024,2]
[426758660,1782784098000,-71.641257,0.00010108,2]
[426758661,1782784098000,-250.0,0.00010174,2]
[426758664,1782784099000,-150.0,0.0001024,2]
[426758666,1782784099000,-268.65629412,0.00010281,2]
[426758665,1782784099000,-160.0,0.00010265,2]
[426758667,1782784099000,-150.0,0.00010351,2]
[426758669,1782784099000,-150.0,0.00010411,2]
[426758670,1782784099000,-500.0,0.00010412,2]
[426758671,1782784099000,-385.96981979,0.00010412,2]
[426758668,1782784099000,-1307.06,0.00010399,2]
[426758673,1782784099000,-500.0,0.00010412,2]
[426758674,1782784099000,-500.0,0.00010412,2]
[426758675,1782784099000,-500.0,0.00010412,2]
[426758676,1782784099000,-570.77313765,0.00010412,2]
[426758677,1782784099000,-500.0,0.00010412,2]
[426758678,1782784099000,-500.0,0.00010412,2]
[426758679,1782784099000,-417.84461493,0.00010412,2]
[426758672,1782784099000,-114.03018021,0.00010412,2]
[426758686,1782784124000,-202.20184358,0.00010411,2]
[426758682,1782784124000,-560.13992303,0.00010411,2]
[426758681,1782784124000,-186.76971355,0.00010312,2]
[426758684,1782784124000,-500.0,0.00010411,2]
[426758683,1782784124000,-508.72563646,0.00010411,2]
[426758685,1782784124000,-500.0,0.00010411,2]
[426758687,1782784124000,-395.3682467,0.00010411,2]
[426758688,1782784124000,-500.0,0.00010411,2]
[426758696,1782784124000,-232.14453887,0.00010411,2]
[426758690,1782784124000,-153.99221753,0.00010411,2]
[426758691,1782784124000,-102.03806886,0.00010411,2]
[426758693,1782784124000,-500.0,0.00010411,2]
[426758695,1782784124000,-500.0,0.00010411,2]
[426758692,1782784124000,-500.0,0.00010411,2]
[426758694,1782784124000,-500.0,0.00010411,2]
[426758697,1782784124000,-500.0,0.00010411,2]
[426758698,1782784124000,-62.61200267,0.00010411,2]
[426758689,1782784124000,-500.0,0.00010411,2]
[426758699,1782784137000,-437.38799733,0.00010411,2]
[426758705,1782784149000,-500.0,0.00010411,2]
[426758700,1782784149000,-446.47083691,0.00010411,2]
[426758701,1782784149000,-500.0,0.00010411,2]
[426758702,1782784149000,-500.0,0.00010411,2]
[426758704,1782784149000,-484.86461525,0.00010411,2]
[426758708,1782784149000,-213.94197252,0.00010411,2]
[426758703,1782784149000,-500.0,0.00010411,2]
[426758707,1782784149000,-500.0,0.00010411,2]
[426758706,1782784149000,-500.0,0.00010411,2]
[426758712,1782784149000,-500.0,0.00010411,2]
[426758713,1782784149000,-500.0,0.00010411,2]
[426758714,1782784149000,-248.3469735,0.00010411,2]
[426758710,1782784149000,-500.0,0.00010411,2]
[426758711,1782784149000,-500.0,0.00010411,2]
[426758709,1782784149000,-286.05802748,0.00010411,2]
[426758716,1782784175000,-2768.62876992,0.00010334,2]
[426758715,1782784175000,-4278.87107319,0.00010334,2]
[426758717,1782784191000,-695.91015689,0.00010334,2]
[426758723,1782784199000,-500.0,0.00010411,2]
[426758720,1782784199000,-182.48,0.00010309,2]
[426758722,1782784199000,-500.0,0.00010411,2]
[426758721,1782784199000,-251.6530265,0.00010411,2]
[426758724,1782784199000,-500.0,0.00010411,2]
[426758725,1782784199000,-500.0,0.00010411,2]
[426758726,1782784199000,-500.0,0.00010411,2]
[426758728,1782784199000,-500.0,0.00010411,2]
[426758729,1782784199000,-485.68804355,0.00010411,2]
[426758727,1782784199000,-500.0,0.00010411,2]
[426758730,1782784199000,-14.31195645,0.00010411,2]
[426758732,1782784199000,-500.0,0.00010411,2]
[426758731,1782784199000,-500.0,0.00010411,2]
[426758733,1782784199000,-500.0,0.00010411,2]
[426758734,1782784199000,-500.0,0.00010411,2]
[426758735,1782784199000,-369.76880866,0.00010411,2]
[426758748,1782784231000,-537.68258904,0.00010411,2]
[426758752,1782784231000,-537.68258904,0.00010411,2]
[426758755,1782784231000,-537.68258904,0.00010411,2]
[426758758,1782784231000,-537.68258904,0.00010411,2]
[426758757,1782784231000,-537.68258904,0.00010411,2]
[426758764,1782784231000,-537.68258904,0.00010411,2]
[426758754,1782784231000,-537.68258904,0.00010411,2]
[426758761,1782784231000,-537.68258904,0.00010411,2]
[426758763,1782784231000,-537.68258904,0.00010411,2]
[426758772,1782784231000,-537.68258904,0.00010411,2]
[426758756,1782784231000,-537.68258904,0.00010411,2]
[426758750,1782784231000,-537.68258904,0.00010411,2]
[426758753,1782784231000,-537.68258904,0.00010411,2]
[426758740,1782784231000,-405.25585843,0.00010411,2]
[426758760,1782784231000,-537.68258904,0.00010411,2]
[426758759,1782784231000,-537.68258904,0.00010411,2]
[426758749,1782784231000,-537.68258904,0.00010411,2]
[426758746,1782784231000,-537.68258904,0.00010411,2]
[426758742,1782784231000,-161.15564809,0.00010411,2]
[426758741,1782784231000,-94.74414157,0.00010411,2]
[426758744,1782784231000,-537.68258904,0.00010411,2]
[426758747,1782784231000,-537.68258904,0.00010411,2]
[426758743,1782784231000,-218.96480028,0.00010411,2]
[426758745,1782784231000,-537.68258904,0.00010411,2]
[426758739,1782784231000,-130.23119134,0.00010411,2]
[426758751,1782784231000,-537.68258904,0.00010411,2]
[426758769,1782784231000,-537.68258904,0.00010411,2]
[426758789,1782784231000,-503.88539772,0.00010411,2]
[426758762,1782784231000,-537.68258904,0.00010411,2]
[426758766,1782784231000,-537.68258904,0.00010411,2]
[426758795,1782784231000,-503.88539772,0.00010411,2]
[426758793,1782784231000,-503.88539772,0.00010411,2]
[426758796,1782784231000,-503.88539772,0.00010411,2]
[426758791,1782784231000,-503.88539772,0.00010411,2]
[426758785,1782784231000,-503.88539772,0.00010411,2]
[426758788,1782784231000,-503.88539772,0.00010411,2]
[426758781,1782784231000,-537.68258904,0.00010411,2]
[426758783,1782784231000,-537.68258904,0.00010411,2]
[426758782,1782784231000,-537.68258904,0.00010411,2]
[426758780,1782784231000,-537.68258904,0.00010411,2]
[426758779,1782784231000,-537.68258904,0.00010411,2]
[426758784,1782784231000,-503.88539772,0.00010411,2]
[426758778,1782784231000,-537.68258904,0.00010411,2]
[426758771,1782784231000,-537.68258904,0.00010411,2]
[426758775,1782784231000,-537.68258904,0.00010411,2]
[426758770,1782784231000,-537.68258904,0.00010411,2]
[426758765,1782784231000,-537.68258904,0.00010411,2]
[426758767,1782784231000,-537.68258904,0.00010411,2]
[426758773,1782784231000,-537.68258904,0.00010411,2]
[426758774,1782784231000,-537.68258904,0.00010411,2]
[426758776,1782784231000,-537.68258904,0.00010411,2]
[426758786,1782784231000,-503.88539772,0.00010411,2]
[426758787,1782784231000,-503.88539772,0.00010411,2]
[426758777,1782784231000,-537.68258904,0.00010411,2]
[426758768,1782784231000,-537.68258904,0.00010411,2]
[426758813,1782784232000,-503.88539772,0.00010411,2]
[426758815,1782784232000,-810.0,0.00010411,2]
[426758814,1782784232000,-270.0,0.00010411,2]
[426758818,1782784232000,-150.0,0.00010411,2]
[426758816,1782784232000,-160.0,0.00010411,2]
[426758824,1782784232000,-223.0,0.00010436,2]
[426758817,1782784232000,-179.39440191,0.00010411,2]
[426758819,1782784232000,-250.0,0.00010411,2]
[426758820,1782784232000,-505.27009635,0.00010412,2]
[426758821,1782784232000,-338.13036805,0.00010412,2]
[426758822,1782784232000,-304.0,0.00010412,2]
[426758812,1782784232000,-503.88539772,0.00010411,2]
[426758810,1782784232000,-232.11729626,0.00010411,2]
[426758801,1782784232000,-503.88539772,0.00010411,2]
[426758806,1782784232000,-503.88539772,0.00010411,2]
[426758807,1782784232000,-503.88539772,0.00010411,2]
[426758808,1782784232000,-503.88539772,0.00010411,2]
[426758809,1782784232000,-271.76810146,0.00010411,2]
[426758804,1782784232000,-80.67176888,0.00010411,2]
[426758805,1782784232000,-423.21362884,0.00010411,2]
[426758802,1782784232000,-503.88539772,0.00010411,2]
[426758803,1782784232000,-503.88539772,0.00010411,2]
[426758799,1782784232000,-503.88539772,0.00010411,2]
[426758800,1782784232000,-503.88539772,0.00010411,2]
[426758797,1782784232000,-503.88539772,0.00010411,2]
[426758798,1782784232000,-503.88539772,0.00010411,2]
[426758823,1782784232000,-1013.27,0.00010413,2]
[426758811,1782784232000,-503.88539772,0.00010411,2]
[426758825,1782784232000,-336.66072847,0.00010443,2]
[426758841,1782784232000,-166.66,0.00011068,2]
[426758827,1782784232000,-540.0,0.00010501,2]
[426758828,1782784232000,-162.09,0.00010512,2]
[426758855,1782784232000,-700.19088126,0.00011321,2]
[426758853,1782784232000,-9791.1311693,0.00011321,2]
[426758854,1782784232000,-496.2484482,0.00011321,2]
[426758849,1782784232000,-1965.64605215,0.00011257,2]
[426758850,1782784232000,-166.66,0.00011288,2]
[426758848,1782784232000,-602.88,0.0001125,2]
[426758842,1782784232000,-250.0,0.00011119,2]
[426758845,1782784232000,-166.66,0.00011178,2]
[426758844,1782784232000,-6233.76706054,0.00011171,2]
[426758847,1782784232000,-152.83,0.00011233,2]
[426758846,1782784232000,-256.62,0.00011193,2]
[426758852,1782784232000,-156.297,0.00011299,2]
[426758851,1782784232000,-6579.099,0.00011299,2]
[426758833,1782784232000,-597.25,0.0001072,2]
[426758837,1782784232000,-162.09,0.00010946,2]
[426758839,1782784232000,-150.0,0.00010959,2]
[426758838,1782784232000,-150.0,0.00010959,2]
[426758840,1782784232000,-166.66,0.00010959,2]
[426758836,1782784232000,-182.48,0.00010881,2]
[426758834,1782784232000,-397.16,0.0001072,2]
[426758835,1782784232000,-220.0,0.00010827,2]
[426758843,1782784232000,-23670.0787,0.0001115,2]
[426758832,1782784232000,-1121.34234409,0.00010658,2]
[426758831,1782784232000,-500.37860656,0.00010621,2]
[426758830,1782784232000,-562.0,0.00010557,2]
[426758829,1782784232000,-1419.94102727,0.00010557,2]
[426758826,1782784232000,-499.53666998,0.00010501,2]
[426758860,1782784237000,-0.2623939,0.00011321,2]
[426758863,1782784238000,-1343.92714983,0.00011357,2]
[426758864,1782784238000,-1222.77733505,0.00011357,2]
[426758861,1782784238000,-6406.30837742,0.00011321,2]
[426758865,1782784238000,-418.66147074,0.00011357,2]
[426758866,1782784238000,-343.51706669,0.00011357,2]
[426758862,1782784238000,-319.49458586,0.00011321,2]
[426759069,1782784239000,-1700.84843977,0.00011357,2]
[426759067,1782784239000,-365.54270048,0.00011357,2]
[426759058,1782784239000,-443.905,0.00011357,2]
[426759169,1782784240000,-22050.63,0.00011363,2]
[426759185,1782784240000,-1902.52,0.00011595,2]
[426759189,1782784240000,-162.09,0.00011813,2]
[426759177,1782784240000,-250.0,0.00011452,2]
[426759175,1782784240000,-255.0,0.00011431,2]
[426759173,1782784240000,-166.66,0.00011397,2]
[426759179,1782784240000,-182.48,0.00011454,2]
[426759183,1782784240000,-500.0,0.0001151,2]
[426759187,1782784240000,-1013.27,0.00011714,2]
[426759181,1782784240000,-166.66,0.00011507,2]
[426759194,1782784240000,-182.48,0.00012027,2]
[426759171,1782784240000,-162.09,0.0001138,2]
[426759192,1782784240000,-1902.52,0.00011884,2]
[426759167,1782784240000,-999.99,0.00011363,2]
[426759152,1782784240000,-372.93,0.00011357,2]
[426759158,1782784240000,-28081.56,0.0001136,2]
[426759164,1782784240000,-9999.99,0.00011363,2]
[426759162,1782784240000,-299.99,0.00011363,2]
[426759156,1782784240000,-4999.99,0.0001136,2]
[426759147,1782784240000,-5268.56,0.00011357,2]
[426759145,1782784240000,-1342.4,0.00011357,2]
[426759160,1782784240000,-809.92,0.0001136,2]
[426759149,1782784240000,-6783.94,0.00011357,2]
[426759141,1782784240000,-9999.99,0.00011357,2]
[426759137,1782784240000,-3861.44583744,0.00011357,2]
[426759139,1782784240000,-9999.99,0.00011357,2]
[426759143,1782784240000,-5195.78,0.00011357,2]